bitfinex/quotes_BTCUSD_20230114
["timestamp","ask_amount","ask_price","bid_price","bid_amount"]
[1673716857554,2.69497848,20837.0,20834.0,0.25198349]
[1673716857555,2.39497848,20837.0,20834.0,0.25198349]
[1673716857802,0.09029,20836.0,20834.0,0.25198349]
[1673716858050,1.759717,20835.0,20834.0,0.25198349]
[1673716858309,1.439883,20835.0,20834.0,0.25198349]
[1673716858824,1.439883,20835.0,20834.0,0.27998349]
[1673716859082,1.439883,20835.0,20834.0,0.25198349]
[1673716859326,1.442883,20835.0,20834.0,0.27998349]
[1673716860361,0.482961,20835.0,20834.0,0.27998349]
[1673716860617,0.003,20835.0,20834.0,0.39974549]
[1673716860883,0.479941,20836.0,20834.0,0.39974549]
[1673716861168,0.479941,20836.0,20835.0,0.23514354]
[1673716861412,0.479941,20836.0,20835.0,0.35489754]
[1673716861892,0.479693,20836.0,20835.0,0.23514354]
[1673716862390,0.523693,20836.0,20835.0,0.23914354]
[1673716862624,0.044,20836.0,20835.0,0.23914354]
[1673716862863,0.044,20836.0,20835.0,0.35889654]
[1673716863103,0.044,20836.0,20835.0,0.123753]
[1673716863611,0.044,20836.0,20835.0,0.37483434]
[1673716863860,0.959816,20838.0,20835.0,0.37083434]
[1673716864118,0.008,20836.0,20835.0,0.35108134]
[1673716864371,0.008,20836.0,20835.0,0.37083234]
[1673716864619,0.016,20836.0,20835.0,0.46983234]
[1673716864871,0.959824,20838.0,20835.0,1.37083234]
[1673716865089,0.967824,20838.0,20836.0,0.119745]
[1673716865376,0.959824,20838.0,20835.0,1.25108134]
[1673716865621,0.008,20836.0,20835.0,1.35008134]
[1673716865886,0.479922,20837.0,20835.0,1.37083134]
[1673716866135,0.479922,20837.0,20835.0,1.25108134]
[1673716866386,0.479922,20837.0,20836.0,0.43155313]
[1673716866887,0.487913,20838.0,20836.0,0.40780713]
[1673716867144,0.479913,20838.0,20836.0,0.31180713]
[1673716867400,0.008,20837.0,20836.0,0.40780713]
[1673716867647,0.008,20837.0,20836.0,0.31180713]
[1673716867892,0.008,20837.0,20836.0,0.52755013]
[1673716868139,0.479913,20838.0,20836.0,0.43155013]
[1673716868380,0.008,20837.0,20836.0,0.40780713]
[1673716868888,0.008,20837.0,20836.0,0.52755013]
[1673716869129,0.008,20837.0,20836.0,0.40780713]
[1673716869366,0.008,20837.0,20836.0,0.52755213]
[1673716879949,0.008,20837.0,20836.0,0.40780713]
[1673716880196,0.9598,20838.0,20836.0,0.31180713]
[1673716880693,0.009,20837.0,20836.0,0.39880713]
[1673716881179,0.009,20837.0,20836.0,0.51855213]
[1673716881458,0.9598,20838.0,20836.0,0.43155213]
[1673716881702,0.9688,20838.0,20836.0,0.39880713]
[1673716882412,0.9688,20838.0,20837.0,0.31482274]
[1673716882649,0.9598,20838.0,20837.0,0.31482274]
[1673716883620,0.9628,20838.0,20837.0,0.34682274]
[1673716884677,0.003,20838.0,20837.0,0.39523566]
[1673716884936,0.003,20838.0,20837.0,0.266837]
[1673716885195,0.003,20838.0,20837.0,0.59433959]
[1673716885415,0.47986,20840.0,20837.0,0.234837]
[1673716885631,0.003,20838.0,20837.0,0.511915]
[1673716885894,0.003,20838.0,20837.0,1.46854202]
[1673716886423,0.003,20838.0,20837.0,1.225864]
[1673716886670,0.003,20838.0,20837.0,1.49433235]
[1673716886914,0.003,20838.0,20837.0,1.01441735]
[1673716887649,1.305574,20838.0,20837.0,0.032]
[1673716887901,1.7933857,20838.0,20837.0,0.032]
[1673716888162,1.57816351,20838.0,20837.0,0.032]
[1673716888417,2.0933857,20838.0,20837.0,0.032]
[1673716889204,1.94990424,20838.0,20837.0,0.032]
[1673716889966,2.23686717,20838.0,20837.0,0.032]
[1673716892296,0.21468639,20847.0,20837.0,0.69110813]
[1673716892590,0.52561952,20862.0,20854.0,1.61968958]
[1673716892845,1.19932898,20872.0,20849.0,0.479616]
[1673716892846,0.2883,20875.0,20853.0,0.51801578]
[1673716893144,6.66e-05,20876.0,20856.0,3.6365]
[1673716893145,0.84779172,20876.0,20856.0,3.6365]
[1673716893401,0.14346649,20865.0,20861.0,0.18190644]
[1673716893655,0.19079255,20876.0,20872.0,0.1142]
[1673716893656,0.19072595,20875.0,20872.0,0.1142]
[1673716893923,0.47720169,20875.0,20873.0,0.50118944]
[1673716894182,6.66e-05,20876.0,20872.0,0.14142982]
[1673716894183,0.6,20874.0,20872.0,0.14142982]
[1673716894491,0.47720169,20873.0,20872.0,1.38453759]
[1673716894759,6.66e-05,20876.0,20872.0,1.57084785]
[1673716895012,6.66e-05,20876.0,20873.0,0.18190644]
[1673716895287,6.66e-05,20876.0,20874.0,0.50114744]
[1673716895549,0.47720169,20875.0,20874.0,0.1151]
[1673716895831,0.47720169,20875.0,20873.0,0.4685681]
[1673716896116,0.47720169,20875.0,20873.0,0.47591613]
[1673716896369,0.47720169,20875.0,20873.0,0.35591613]
[1673716896626,0.48220169,20875.0,20874.0,0.3351]
[1673716896882,6.66e-05,20876.0,20875.0,0.96940337]
[1673716897342,6.66e-05,20876.0,20875.0,2.14481649]
[1673716897595,6.6e-06,20876.0,20875.0,2.4306314]
[1673716897859,0.0001,20880.0,20876.0,0.00015777]
[1673716898129,0.0001,20880.0,20879.0,0.1148]
[1673716898660,0.00702754,20881.0,20879.0,0.46516141]
[1673716898910,0.22501559,20888.0,20886.0,0.0397456]
[1673716899206,0.154262,20889.0,20886.0,0.0397456]
[1673716899476,0.101462,20889.0,20886.0,0.0397456]
[1673716900596,0.47720169,20888.0,20886.0,0.0397456]
[1673716900841,0.79691669,20887.0,20886.0,4.56e-05]
[1673716901205,0.79691669,20887.0,20881.0,0.1]
[1673716901206,1.27568269,20887.0,20881.0,0.1]
[1673716901466,0.87734064,20886.0,20881.0,0.1]
[1673716901715,1.94529064,20885.0,20881.0,0.1]
[1673716901961,0.34765332,20885.0,20882.0,0.1]
[1673716902213,0.478824,20885.0,20882.0,0.1]
[1673716902979,0.957648,20885.0,20882.0,0.1]
[1673716903804,0.04999182,20888.0,20882.0,0.29072595]
[1673716904053,0.478752,20888.0,20883.0,0.19072595]
[1673716904297,0.478752,20888.0,20884.0,0.29072595]
[1673716904547,0.478752,20888.0,20885.0,0.19072595]
[1673716905089,0.101462,20889.0,20888.0,0.95750399]
[1673716905325,0.580201,20889.0,20888.0,0.95750399]
[1673716906091,0.880201,20889.0,20888.0,0.95750399]
[1673716906357,0.580201,20889.0,20888.0,1.14822994]
[1673716906610,0.580201,20889.0,20888.0,0.95750399]
[1673716907395,0.101462,20889.0,20888.0,0.95750399]
[1673716908913,0.101462,20889.0,20888.0,1.27722199]
[1673716909424,2e-06,20889.0,20888.0,1.86952368]
[1673716909672,1.5,20890.0,20888.0,1.86952368]
[1673716909673,1.5,20890.0,20889.0,0.59950071]
[1673716909925,0.18027967,20890.0,20889.0,0.59950071]
[1673716910177,0.17527967,20890.0,20889.0,0.59950071]
[1673716910438,0.17527967,20890.0,20889.0,1.0767024]
[1673716910696,0.02001829,20895.0,20889.0,1.86890095]
[1673716910947,0.478541,20897.0,20896.0,0.0657271]
[1673716911208,0.478541,20897.0,20896.0,0.57617105]
[1673716911493,0.50641253,20904.0,20898.0,0.47720169]
[1673716911742,0.019147,20908.0,20903.0,0.47437025]
[1673716912005,0.00334655,20917.0,20903.0,0.47437025]
[1673716912006,0.6,20912.0,20903.0,0.47437025]
[1673716912260,0.6,20909.0,20904.0,0.19072595]
[1673716912527,0.6,20909.0,20899.0,1.1]
[1673716912528,0.6,20906.0,20899.0,1.1]
[1673716912838,0.03487,20907.0,20897.0,1.11377723]
[1673716912839,0.6,20903.0,20897.0,1.11377723]
[1673716913056,0.595,20900.0,20885.0,0.31980683]
[1673716913323,0.595,20900.0,20884.0,0.32559343]
[1673716913324,2.030812,20895.0,20887.0,0.24670675]
[1673716913581,1.084527,20892.0,20885.0,0.005]
[1673716913832,0.1274,20888.0,20886.0,0.30551455]
[1673716914096,0.478743,20888.0,20887.0,0.04979994]
[1673716914350,0.3,20891.0,20887.0,0.48097733]
[1673716914600,0.03138,20890.0,20888.0,0.33107651]
[1673716914858,0.03138,20890.0,20886.0,0.48097733]
[1673716914859,0.1269,20889.0,20881.0,0.00342389]
[1673716915112,0.59622436,20886.0,20878.0,1.15532103]
[1673716915380,0.75329242,20885.0,20878.0,1.15532103]
[1673716915637,0.1279,20882.0,20879.0,0.67170328]
[1673716915893,0.6395,20886.0,20876.0,0.00015777]
[1673716915894,0.17609073,20886.0,20883.0,0.48097733]
[1673716916151,0.4787,20890.0,20883.0,0.48097733]
[1673716916152,0.4787,20890.0,20883.0,0.67170328]
[1673716916407,0.4787,20890.0,20884.0,0.19072595]
[1673716916655,0.606454,20892.0,20886.0,0.48097733]
[1673716916917,0.606454,20892.0,20887.0,0.19072595]
[1673716917174,0.75732267,20898.0,20886.0,0.48097733]
[1673716917175,0.26379252,20900.0,20889.0,0.48097733]
[1673716917447,0.606251,20901.0,20890.0,0.19072595]
[1673716917448,0.29033229,20899.0,20890.0,0.19072595]
[1673716917711,1.153451,20901.0,20893.0,0.48097733]
[1673716917983,0.83100391,20897.0,20894.0,0.19072595]
[1673716918237,0.02033773,20896.0,20894.0,0.19072595]
[1673716918495,0.02033773,20896.0,20893.0,0.48097733]
[1673716918769,0.24523092,20896.0,20893.0,0.67170328]
[1673716919026,0.24523092,20896.0,20894.0,0.32771192]
[1673716919541,0.24523092,20896.0,20893.0,0.48097733]
[1673716919787,0.3,20895.0,20893.0,0.48097733]
[1673716920307,0.24523092,20896.0,20893.0,0.67170328]
[1673716920562,0.24523092,20896.0,20893.0,0.48097733]
[1673716920815,0.3,20895.0,20893.0,0.48097733]
[1673716921062,1.27223586,20895.0,20893.0,0.4809067]
[1673716921283,0.778585,20895.0,20893.0,0.4809067]
[1673716921777,0.778585,20895.0,20892.0,1.4e-07]
[1673716921778,0.478629,20893.0,20892.0,1.4e-07]
[1673716922025,0.478629,20893.0,20879.0,0.22789]
[1673716922026,1.81853846,20893.0,20881.0,0.48399828]
[1673716922266,0.03138,20890.0,20881.0,0.75405338]
[1673716922506,1.536277,20888.0,20881.0,0.77268675]
[1673716922760,0.03138,20885.0,20881.0,0.48399828]
[1673716923010,1.12877073,20884.0,20881.0,0.48399828]
[1673716923273,0.17109073,20883.0,20882.0,0.01243612]
[1673716923511,0.5272,20883.0,20882.0,0.01243612]
[1673716923768,0.68197633,20884.0,20883.0,0.60461551]
[1673716924018,0.80937633,20884.0,20883.0,0.60461551]
[1673716924496,1.03441301,20884.0,20883.0,0.60461551]
[1673716925253,1.33441301,20884.0,20883.0,0.87137691]
[1673716925741,1.33441301,20884.0,20883.0,0.0124227]
[1673716925982,1.8116147,20884.0,20881.0,0.00309158]
[1673716926252,0.4271,20883.0,20882.0,0.24201709]
[1673716926503,0.655,20883.0,20881.0,0.00309158]
[1673716926758,0.25928,20882.0,20878.0,0.04948288]
[1673716926995,0.1269,20879.0,20878.0,0.04948288]
[1673716927253,1.55589073,20879.0,20878.0,0.04948288]
[1673716927504,1.3848,20879.0,20877.0,0.73729786]
[1673716927738,0.1276,20878.0,20877.0,0.73729786]
[1673716927997,1.006573,20878.0,20877.0,0.73729786]
[1673716928246,1.17766373,20878.0,20877.0,0.29518609]
[1673716928490,0.1,20877.0,20876.0,0.00015777]
[1673716928738,1.133496,20877.0,20876.0,0.00015777]
[1673716928965,1.4763118,20877.0,20876.0,1.3e-07]
[1673716929225,1.4763118,20877.0,20875.0,0.69429395]
[1673716929226,2.42128842,20877.0,20875.0,0.69429395]
[1673716929504,0.65679242,20876.0,20870.0,0.4809067]
[1673716929752,1.218564,20874.0,20866.0,0.86079894]
[1673716930008,1.218564,20874.0,20870.0,0.4809067]
[1673716930009,1.437366,20872.0,20870.0,0.4809067]
[1673716930503,0.3,20871.0,20870.0,0.4809067]
[1673716930754,0.3,20871.0,20868.0,0.43039947]
[1673716930755,1.69244738,20871.0,20868.0,0.43039947]
[1673716931004,0.1269,20869.0,20868.0,0.43039947]
[1673716931259,1.564437,20869.0,20868.0,0.43039947]
[1673716931511,0.1,20868.0,20866.0,0.86079894]
[1673716931765,0.1,20868.0,20863.0,0.2371037]
[1673716931766,1.724891,20867.0,20863.0,0.2371037]
[1673716932011,0.1269,20864.0,20863.0,0.2371037]
[1673716932266,2.51516673,20864.0,20863.0,0.2371037]
[1673716932514,2.344076,20864.0,20863.0,0.2371037]
[1673716933752,2.00701426,20864.0,20863.0,0.2371037]
[1673716934241,1.87941426,20864.0,20863.0,0.2371037]
[1673716935059,1.10012026,20864.0,20863.0,0.2371037]
[1673716935305,0.479286,20865.0,20863.0,0.2371037]
[1673716935784,0.479286,20865.0,20864.0,0.2371037]
[1673716936543,0.579286,20865.0,20864.0,0.2371037]
[1673716936775,0.779286,20865.0,20864.0,0.2371037]
[1673716937260,1.02481282,20865.0,20864.0,0.2371037]
[1673716937520,0.779286,20865.0,20864.0,0.2371037]
[1673716937775,1.08827673,20865.0,20861.0,0.24251273]
[1673716938020,0.03138,20863.0,20861.0,0.24251273]
[1673716938273,1.91736,20862.0,20861.0,0.24251273]
[1673716938525,2.21736,20862.0,20861.0,0.24251273]
[1673716939284,2.21736,20862.0,20861.0,0.00540903]
[1673716939518,2.21736,20862.0,20861.0,0.24251273]
[1673716941305,2.21736,20862.0,20861.0,0.22251273]
[1673716941889,1.91736,20862.0,20861.0,0.41323868]
[1673716942095,0.479322,20863.0,20861.0,0.41323868]
[1673716942350,0.479305,20864.0,20862.0,1.32138173]
[1673716942612,0.479305,20864.0,20863.0,0.210014]
[1673716942910,0.479305,20864.0,20863.0,0.319718]
[1673716942911,0.958599,20864.0,20863.0,0.319718]
[1673716943185,0.958599,20864.0,20863.0,0.419718]
[1673716943447,0.479275,20865.0,20864.0,0.209987]
[1673716943709,0.52877118,20866.0,20864.0,0.209987]
[1673716943710,1.00801918,20866.0,20865.0,0.319685]
[1673716943970,0.958508,20866.0,20864.0,0.22251273]
[1673716944218,0.479221,20868.0,20865.0,0.319718]
[1673716944481,0.479221,20868.0,20866.0,0.30993]
[1673716944721,0.479221,20868.0,20867.0,0.54223073]
[1673716945006,0.479221,20868.0,20867.0,0.43239673]
[1673716945263,0.479188,20869.0,20868.0,0.97283672]
[1673716945762,0.479188,20869.0,20868.0,0.65313472]
[1673716946011,0.958367,20869.0,20868.0,0.65313472]
[1673716947007,1.258367,20869.0,20868.0,0.65313472]
[1673716947663,1.57852324,20869.0,20868.0,0.65313472]
[1673716948176,1.57852324,20869.0,20868.0,0.87564745]
[1673716948960,1.83380632,20869.0,20868.0,0.87564745]
[1673716949971,1.75085856,20869.0,20868.0,0.87564745]
[1673716950975,1.49557548,20869.0,20868.0,0.87564745]
[1673716951241,1.49557548,20869.0,20868.0,1.0663734]
[1673716951242,0.958367,20869.0,20868.0,1.0663734]
[1673716951498,0.958367,20869.0,20868.0,0.87564745]
[1673716952494,0.958367,20869.0,20868.0,1.19536545]
[1673716952758,0.958367,20869.0,20868.0,1.08550245]
[1673716953264,0.958367,20869.0,20868.0,10.98550245]
[1673716953508,0.958367,20869.0,20868.0,10.77564745]
[1673716953767,0.20345733,20869.0,20868.0,10.77564745]
[1673716954010,0.479173,20870.0,20869.0,0.74015881]
[1673716954261,0.958329,20870.0,20869.0,0.74015881]
[1673716957036,0.49513458,20871.0,20869.0,1.25060276]
[1673716957266,0.49513458,20871.0,20870.0,1.44198084]
[1673716957267,0.01599058,20871.0,20870.0,1.44198084]
[1673716957744,0.01599058,20871.0,20870.0,1.34198084]
[1673716958006,0.30973131,20871.0,20870.0,1.56449357]
[1673716958251,2.27090035,20871.0,20870.0,1.13216384]
[1673716958493,2.27090035,20871.0,20870.0,0.57178184]
[1673716958494,2.35442544,20871.0,20870.0,0.57178184]
[1673716958740,2.3589633,20871.0,20870.0,0.57178184]
[1673716958990,2.03376886,20871.0,20870.0,0.57178184]
[1673716959249,2.33376886,20871.0,20870.0,0.57178184]
[1673716959485,2.65594316,20871.0,20869.0,0.74015881]
[1673716959729,0.3,20870.0,20869.0,0.74015881]
[1673716959984,0.779156,20870.0,20869.0,0.74015881]
[1673716960247,1.258312,20870.0,20869.0,0.74015881]
[1673716960512,1.59225074,20870.0,20869.0,0.74015881]
[1673716961268,1.258312,20870.0,20869.0,0.13198481]
[1673716961514,1.258312,20870.0,20868.0,10.55313472]
[1673716961515,1.36852167,20869.0,20868.0,10.30286272]
[1673716961748,2.48385713,20869.0,20868.0,10.30286272]
[1673716962004,2.38385713,20869.0,20868.0,10.30286272]
[1673716962515,2.38385713,20869.0,20868.0,10.02010772]
[1673716962750,3.08511098,20869.0,20868.0,8.42278772]
[1673716963004,3.21667639,20869.0,20868.0,6.75788672]
[1673716963262,0.1,20868.0,20864.0,0.22251273]
[1673716963498,0.89176899,20867.0,20864.0,0.22251273]
[1673716963745,2.22397352,20866.0,20864.0,0.22251273]
[1673716963976,0.1,20865.0,20864.0,0.22251273]
[1673716964216,1.058542,20865.0,20864.0,0.22251273]
[1673716964471,1.358542,20865.0,20864.0,0.22251273]
[1673716964716,1.389922,20865.0,20864.0,0.22251273]
[1673716964957,1.7977622,20865.0,20864.0,0.22251273]
[1673716965676,1.389922,20865.0,20864.0,0.22251273]
[1673716966194,1.86712369,20865.0,20864.0,7.3e-07]
[1673716966462,2.79212981,20865.0,20862.0,1.32138173]
[1673716966692,1.15836424,20864.0,20862.0,1.32138173]
[1673716966963,1.537951,20863.0,20862.0,1.32138173]
[1673716967249,1.837951,20863.0,20862.0,1.32138173]
[1673716967752,1.837951,20863.0,20862.0,1.31138173]
[1673716969017,2.317268,20863.0,20862.0,1.31138173]
[1673716969265,3.09461314,20863.0,20861.0,0.00502451]
[1673716969515,0.81659707,20862.0,20861.0,5.1e-07]
[1673716969813,1.91756,20860.0,20857.0,0.00502451]
[1673716970030,1.917728,20858.0,20857.0,0.00502451]
[1673716970287,2.38881873,20858.0,20857.0,0.00502451]
[1673716970551,2.217728,20858.0,20857.0,0.00502451]
[1673716971049,1.438296,20858.0,20857.0,0.296297]
[1673716971317,1.438296,20858.0,20857.0,0.00502451]
[1673716975463,1.438296,20858.0,20857.0,0.96412701]
[1673716975721,1.438296,20858.0,20857.0,1.24855424]
[1673716976942,1.438296,20858.0,20857.0,0.28945174]
[1673716977201,1.438296,20858.0,20857.0,0.00502451]
[1673716977202,1.738296,20858.0,20857.0,0.00502451]
[1673716978673,1.438296,20858.0,20857.0,0.00502451]
[1673716979900,1.738296,20858.0,20857.0,0.00502451]
[1673716980707,1.738296,20858.0,20857.0,2.451e-05]
[1673716980952,1.438296,20858.0,20857.0,2.451e-05]
[1673716981454,1.538296,20858.0,20857.0,2.451e-05]
[1673716981666,1.838296,20858.0,20857.0,2.451e-05]
[1673716983457,3.06264336,20858.0,20857.0,2.451e-05]
[1673716983723,3.88493413,20858.0,20854.0,0.00540903]
[1673716983987,1.918012,20855.0,20850.0,0.00604468]
[1673716984242,0.03138,20851.0,20850.0,0.00604468]
[1673716984505,0.32512073,20851.0,20850.0,6.8e-07]
[1673716984765,2.67219273,20851.0,20843.0,0.14002317]
[1673716985014,1.54451023,20850.0,20842.0,0.2557447]
[1673716985262,1.918937,20845.0,20842.0,0.2557447]
[1673716985514,0.17109073,20844.0,20838.0,0.1287]
[1673716985767,1.13068073,20843.0,20838.0,0.1287]
[1673716986040,0.85473252,20843.0,20838.0,0.1287]
[1673716986286,1.33450952,20843.0,20838.0,0.1287]
[1673716986548,1.33450952,20843.0,20838.0,0.41200057]
[1673716986804,1.32792354,20843.0,20842.0,1.91823975]
[1673716987308,1.62792354,20843.0,20842.0,1.91823975]
[1673716987574,1.78800354,20843.0,20842.0,1.11040975]
[1673716987823,1.78800354,20843.0,20837.0,0.95970611]
[1673716988078,1.567802,20841.0,20837.0,0.95970611]
[1673716988354,0.3,20840.0,20837.0,0.95970611]
[1673716988608,1.6263872,20839.0,20837.0,0.95970611]
[1673716988864,0.5287,20838.0,20837.0,0.95970611]
[1673716989116,0.4,20838.0,20837.0,0.95970611]
[1673716989379,0.3,20838.0,20837.0,0.95970611]
[1673716989643,0.4,20838.0,20837.0,0.95970611]
[1673716990175,0.43138,20838.0,20837.0,0.95970611]
[1673716990487,0.8148993,20838.0,20837.0,0.71560311]
[1673716990710,0.1,20837.0,20836.0,0.99178639]
[1673716990995,1.968445,20837.0,20836.0,0.99178639]
[1673716991526,0.76361361,20836.0,20835.0,0.00840912]
[1673716991774,0.1,20835.0,20834.0,2.12056581]
[1673716992021,0.1,20835.0,20834.0,2.04742776]
[1673716992022,0.959922,20835.0,20834.0,2.04742776]
[1673716992264,0.959922,20835.0,20834.0,1.85670181]
[1673716992526,0.959922,20835.0,20833.0,0.00714295]
[1673716993047,0.959922,20835.0,20834.0,0.28999418]
[1673716994129,0.959922,20835.0,20833.0,0.00714295]
[1673716994373,0.3,20834.0,20833.0,0.00714295]
[1673716994599,0.779984,20834.0,20833.0,0.00714295]
[1673716994859,0.879984,20834.0,20833.0,0.00714295]
[1673716995621,0.479984,20834.0,20833.0,0.44868464]
[1673716995884,0.479961,20835.0,20833.0,0.25795869]
[1673716996135,0.34617208,20837.0,20834.0,0.53710903]
[1673716996136,0.82610108,20837.0,20834.0,0.53710903]
[1673716996396,0.82610108,20837.0,20835.0,0.40153195]
[1673716996646,0.82610108,20837.0,20835.0,0.19072595]
[1673716996899,0.82610108,20837.0,20833.0,0.00714295]
[1673716997146,0.82610108,20837.0,20834.0,0.319718]
[1673716997403,0.34617208,20837.0,20835.0,0.40153095]
[1673716997654,0.34617208,20837.0,20836.0,0.448286]
[1673716998151,0.34617208,20837.0,20834.0,0.29213684]
[1673716998152,0.82608708,20837.0,20834.0,0.29213684]
[1673716998401,0.86546868,20837.0,20833.0,0.00714295]
[1673716998646,0.1,20836.0,20833.0,0.00714295]
[1673716998900,1.59474531,20835.0,20833.0,0.00714295]
[1673716999161,0.3,20834.0,20833.0,0.00714295]
[1673716999422,0.1,20834.0,20833.0,0.00714295]
[1673716999674,0.879984,20834.0,20833.0,0.00714295]
[1673717000960,1.59183846,20834.0,20833.0,0.00714295]
[1673717001233,1.59183846,20834.0,20833.0,2.95e-06]
[1673717001234,2.24781413,20834.0,20833.0,2.95e-06]
[1673717001493,1.18745798,20834.0,20833.0,2.95e-06]
[1673717001733,0.879984,20834.0,20833.0,2.95e-06]
[1673717003773,0.479984,20834.0,20833.0,0.1907289]
[1673717004018,0.479984,20834.0,20833.0,2.95e-06]
[1673717007632,0.959968,20834.0,20833.0,2.95e-06]
[1673717010187,1.4519553,20834.0,20833.0,2.95e-06]
[1673717011690,1.259968,20834.0,20833.0,2.95e-06]
[1673717011948,0.959968,20834.0,20833.0,2.95e-06]
[1673717012462,1.059968,20834.0,20833.0,2.95e-06]
[1673717012980,0.959968,20834.0,20833.0,2.95e-06]
[1673717013484,1.259968,20834.0,20833.0,2.95e-06]
[1673717014492,1.5047993,20834.0,20833.0,2.95e-06]
[1673717014744,1.259968,20834.0,20833.0,2.95e-06]
[1673717015239,0.959968,20834.0,20833.0,2.95e-06]
[1673717015446,1.259968,20834.0,20833.0,2.95e-06]
[1673717016011,0.959968,20834.0,20833.0,2.95e-06]
[1673717016524,0.68385318,20834.0,20833.0,2.95e-06]
[1673717017615,0.479953,20836.0,20833.0,0.1907289]
[1673717017869,0.34617208,20837.0,20834.0,1.45542001]
[1673717018121,0.34617208,20837.0,20835.0,0.210805]
[1673717018421,0.34617208,20837.0,20834.0,1.13570201]
[1673717018422,0.82608808,20837.0,20836.0,0.319686]
[1673717019158,0.34617208,20837.0,20834.0,0.94497606]
[1673717019399,0.34617208,20837.0,20835.0,0.319718]
[1673717019653,0.34617208,20837.0,20836.0,0.210778]
[1673717019904,0.959823,20838.0,20836.0,0.210778]
[1673717020151,0.52918543,20839.0,20837.0,0.319718]
[1673717020397,0.52918543,20839.0,20838.0,0.319718]
[1673717020655,0.479891,20839.0,20836.0,0.3009221]
[1673717022203,0.479891,20839.0,20837.0,0.319718]
[1673717022464,0.479891,20839.0,20838.0,0.26442271]
[1673717022767,0.479891,20839.0,20834.0,1.55245706]
[1673717022768,0.95976,20839.0,20834.0,1.55245706]
[1673717023015,1.10970917,20839.0,20836.0,0.26678563]
[1673717023265,1.10970917,20839.0,20834.0,1.20593198]
[1673717023597,0.3,20838.0,20834.0,0.94497606]
[1673717023793,0.62981817,20839.0,20834.0,0.94497606]
[1673717024048,1.43976,20837.0,20834.0,1.13570201]
[1673717024300,1.43976,20837.0,20834.0,0.94497606]
[1673717025851,1.43976,20837.0,20834.0,0.93497606]
[1673717027117,0.3,20836.0,20834.0,0.93497606]
[1673717027360,1.439883,20835.0,20834.0,0.93497606]
[1673717027610,1.739883,20835.0,20834.0,0.93497606]
[1673717028373,1.439883,20835.0,20834.0,0.93497606]
[1673717028624,1.439883,20835.0,20834.0,0.58880398]
[1673717028625,1.739883,20835.0,20834.0,0.58880398]
[1673717029149,2.219844,20835.0,20834.0,0.58880398]
[1673717029394,2.46269497,20835.0,20834.0,0.58880398]
[1673717029637,2.36269497,20835.0,20834.0,0.58880398]
[1673717029904,2.219844,20835.0,20834.0,0.58880398]
[1673717030149,2.36269497,20835.0,20834.0,0.58880398]
[1673717030425,2.219844,20835.0,20834.0,0.58880398]
[1673717030701,1.919844,20835.0,20834.0,0.58880398]
[1673717030952,1.439883,20835.0,20834.0,0.8574971]
[1673717031274,0.959922,20835.0,20834.0,0.8574971]
[1673717032194,0.959922,20835.0,20834.0,0.58880398]
[1673717034498,0.959922,20835.0,20834.0,0.58380398]
[1673717039139,0.959922,20835.0,20834.0,0.81041961]
[1673717039371,0.08103604,20839.0,20834.0,1.00114556]
[1673717039372,0.88688993,20839.0,20834.0,1.00114556]
[1673717039623,0.88688993,20839.0,20835.0,0.319718]
[1673717039624,0.14285097,20837.0,20835.0,0.319718]
[1673717039890,0.479941,20836.0,20834.0,0.58380398]
[1673717040670,0.479941,20836.0,20834.0,0.81956681]
[1673717040935,0.479937,20837.0,20834.0,0.81956681]
[1673717041508,0.479937,20837.0,20834.0,0.41941401]
[1673717042004,0.62274697,20838.0,20834.0,0.41941401]
[1673717042264,0.62274697,20838.0,20834.0,0.61013996]
[1673717042533,0.40701893,20839.0,20835.0,0.19072595]
[1673717042804,0.40701893,20839.0,20836.0,0.319718]
[1673717042805,0.04965604,20839.0,20836.0,0.319718]
[1673717043051,0.04965604,20839.0,20836.0,0.19072595]
[1673717043554,0.04965604,20839.0,20835.0,0.1275]
[1673717043555,0.04965604,20839.0,20837.0,0.28654727]
[1673717044078,0.62271997,20840.0,20837.0,0.28654727]
[1673717044339,0.83723189,20840.0,20837.0,0.28654727]
[1673717044585,0.62271997,20840.0,20837.0,0.28654727]
[1673717044852,0.47987,20839.0,20837.0,0.28654727]
[1673717045103,0.01088487,20841.0,20838.0,0.2559]
[1673717045358,0.49071387,20841.0,20839.0,0.319718]
[1673717045622,0.49071387,20841.0,20840.0,0.210665]
[1673717045884,0.49071387,20841.0,20839.0,0.29903783]
[1673717046143,0.49071387,20841.0,20840.0,0.28449037]
[1673717046700,0.01088487,20841.0,20840.0,0.28449037]
[1673717048196,0.01088487,20841.0,20840.0,0.60420837]
[1673717048459,0.01088487,20841.0,20840.0,0.49513737]
[1673717048731,0.01088487,20841.0,20840.0,0.60420837]
[1673717049496,0.01088487,20841.0,20840.0,0.49513737]
[1673717049990,1.09318087,20841.0,20838.0,0.1274]
[1673717050239,1.09318087,20841.0,20839.0,0.22346219]
[1673717050754,0.49070787,20841.0,20840.0,0.27397378]
[1673717051014,0.01088487,20841.0,20840.0,0.40147378]
[1673717051283,0.01088487,20841.0,20840.0,0.72119178]
[1673717054432,0.01088487,20841.0,20840.0,0.447218]
[1673717054716,0.01088487,20841.0,20840.0,0.70704674]
[1673717055486,0.01088487,20841.0,20840.0,1.18689274]
[1673717056032,0.01088487,20841.0,20840.0,0.927064]
[1673717056273,0.01088487,20841.0,20840.0,1.40691]
[1673717056543,0.01088487,20841.0,20840.0,1.70691]
[1673717057099,0.01088487,20841.0,20840.0,1.93541]
[1673717057890,0.01049674,20844.0,20841.0,0.11030075]
[1673717058146,0.01049674,20844.0,20843.0,0.1275]
[1673717058415,0.01049674,20844.0,20843.0,1.026943]
[1673717058686,0.0103724,20846.0,20843.0,2.12514595]
[1673717058937,0.0103724,20846.0,20845.0,0.2574]
[1673717059191,0.0103724,20846.0,20845.0,1.636495]
[1673717059454,0.0103724,20846.0,20845.0,0.448333]
[1673717060215,0.0103724,20846.0,20845.0,1.11778995]
[1673717060499,0.0103724,20846.0,20845.0,0.927064]
[1673717060790,0.0103724,20846.0,20845.0,1.706795]
[1673717061095,0.0103724,20846.0,20845.0,1.806795]
[1673717062461,0.0103724,20846.0,20845.0,1.935495]
[1673717065266,0.0103724,20846.0,20845.0,3.05639669]
[1673717065554,0.01049674,20848.0,20846.0,0.10646525]
[1673717065824,0.01049674,20848.0,20847.0,1.298239]
[1673717067125,0.01049674,20848.0,20847.0,1.58282281]
[1673717068918,0.01049674,20848.0,20847.0,1.68282281]